[Event "Titled Tuesday Blitz February 15 Late 2022"]
[White "Petrosyan, Manuel"]
[Black "Baches Garcia, Guillermo"]
[WhiteFideId "13300857"]
[BlackFideId "2209764"]
[WhiteElo "2838"]
[BlackElo "2457"]
[Result "1-0"]
[Round "01"]
[TimeControl "180+1"]
[Date "2022.02.16"]
[WhiteClock "0:00:50"]
[BlackClock "0:00:11"]

1. e4 {[%clk 0:02:59]}  c5 {[%clk 0:02:59]} 2. Nf3 {[%clk 0:02:59]}  d6 {[%clk 0:03:00]} 3. d4 {[%clk 0:02:58]}  cxd4 {[%clk 0:03:01]} 4. Nxd4 {[%clk 0:02:59]}  Nf6 {[%clk 0:03:01]} 5. Nc3 {[%clk 0:02:59]}  Nc6 {[%clk 0:03:01]} 6. Bc4 {[%clk 0:02:53]}  Bd7 {[%clk 0:03:01]} 7. f3 {[%clk 0:02:47]}  Nxd4 {[%clk 0:02:59]} 8. Qxd4 {[%clk 0:02:46]}  g6 {[%clk 0:02:59]} 9. Be3 {[%clk 0:02:44]}  Bg7 {[%clk 0:02:58]} 10. Qd2 {[%clk 0:02:44]}  O-O {[%clk 0:02:55]} 11. h4 {[%clk 0:02:43]}  Qa5 {[%clk 0:02:44]} 12. Bb3 {[%clk 0:02:36]}  h5 {[%clk 0:02:31]} 13. O-O-O {[%clk 0:02:34]}  Rac8 {[%clk 0:02:24]} 14. Bd4 {[%clk 0:02:31]}  b5 {[%clk 0:02:02]} 15. Kb1 {[%clk 0:02:28]}  b4 {[%clk 0:02:01]} 16. Nd5 {[%clk 0:02:16]}  Nxd5 {[%clk 0:01:58]} 17. Bxg7 {[%clk 0:02:12]}  Kxg7 {[%clk 0:01:28]} 18. exd5 {[%clk 0:02:12]}  Qc5 {[%clk 0:01:20]} 19. Rhe1 {[%clk 0:01:51]}  Rfe8 {[%clk 0:01:03]} 20. Qd4+ {[%clk 0:01:33]}  Qxd4 {[%clk 0:01:00]} 21. Rxd4 {[%clk 0:01:34]}  a5 {[%clk 0:00:59]} 22. Bc4 {[%clk 0:01:33]}  Rc5 {[%clk 0:00:49]} 23. b3 {[%clk 0:01:32]}  a4 {[%clk 0:00:49]} 24. bxa4 {[%clk 0:01:23]}  Bxa4 {[%clk 0:00:46]} 25. Bb3 {[%clk 0:01:23]}  Bxb3 {[%clk 0:00:42]} 26. axb3 {[%clk 0:01:24]}  Kf6 {[%clk 0:00:41]} 27. Re2 {[%clk 0:01:06]}  Ra8 {[%clk 0:00:36]} 28. Rf4+ {[%clk 0:01:04]}  Kg7 {[%clk 0:00:35]} 29. Rxe7 {[%clk 0:01:05]}  Rxd5 {[%clk 0:00:24]} 30. Rfxf7+ {[%clk 0:01:04]}  Kg8 {[%clk 0:00:24]} 31. Rg7+ {[%clk 0:01:05]}  Kh8 {[%clk 0:00:20]} 32. Rh7+ {[%clk 0:01:05]}  Kg8 {[%clk 0:00:20]} 33. Reg7+ {[%clk 0:01:06]}  Kf8 {[%clk 0:00:21]} 34. Rb7 {[%clk 0:01:07]}  Kg8 {[%clk 0:00:21]} 35. Rhg7+ {[%clk 0:01:01]}  Kh8 {[%clk 0:00:20]} 36. Rxg6 {[%clk 0:00:59]}  Rd1+ {[%clk 0:00:20]} 37. Kb2 {[%clk 0:00:58]}  Rda1 {[%clk 0:00:20]} 38. Rxb4 {[%clk 0:00:57]}  R8a2+ {[%clk 0:00:17]} 39. Kc3 {[%clk 0:00:57]}  Rc1 {[%clk 0:00:18]} 40. Rb8+ {[%clk 0:00:53]}  Kh7 {[%clk 0:00:18]} 41. Rxd6 {[%clk 0:00:54]}  Rcxc2+ {[%clk 0:00:15]} 42. Kb4 {[%clk 0:00:55]}  Ra7 {[%clk 0:00:12]} 43. Rdd8 {[%clk 0:00:50]}  Rxg2 {[%clk 0:00:11]} 44. Rh8+ {[%clk 0:00:50]}  Kg7 {[%clk 0:00:11]} 45. Rbg8+ {[%clk 0:00:50]} 1-0


[Site "https://www.chess.com"]

[Event "Titled Tuesday Blitz February 15 Late 2022"]
[White "Pinheiro, Iung Alicio de O."]
[Black "Kujawski, Adam"]
[WhiteFideId "2104350"]
[BlackFideId "1100920"]
[WhiteElo "2653"]
[BlackElo "2053"]
[Result "0-1"]
[Round "01"]
[TimeControl "180+1"]
[Date "2022.02.16"]
[WhiteClock "0:00:26"]
[BlackClock "0:00:19"]

1. e4 {[%clk 0:02:58]}  e5 {[%clk 0:02:59]} 2. Nf3 {[%clk 0:02:57]}  Nc6 {[%clk 0:02:59]} 3. Bc4 {[%clk 0:02:57]}  Nf6 {[%clk 0:02:59]} 4. d3 {[%clk 0:02:55]}  d5 {[%clk 0:02:59]} 5. exd5 {[%clk 0:02:55]}  Nxd5 {[%clk 0:02:59]} 6. O-O {[%clk 0:02:55]}  Nb6 {[%clk 0:02:59]} 7. Bb5 {[%clk 0:02:55]}  Bd6 {[%clk 0:02:59]} 8. Re1 {[%clk 0:02:55]}  f6 {[%clk 0:02:58]} 9. Nbd2 {[%clk 0:02:49]}  Bd7 {[%clk 0:02:57]} 10. d4 {[%clk 0:02:41]}  O-O {[%clk 0:02:53]} 11. dxe5 {[%clk 0:02:00]}  Nxe5 {[%clk 0:02:53]} 12. Bxd7 {[%clk 0:01:58]}  Qxd7 {[%clk 0:02:18]} 13. Ne4 {[%clk 0:01:53]}  Nxf3+ {[%clk 0:02:14]} 14. Qxf3 {[%clk 0:01:54]}  Be5 {[%clk 0:02:14]} 15. c3 {[%clk 0:01:38]}  Qc6 {[%clk 0:02:12]} 16. Bf4 {[%clk 0:01:30]}  Bxf4 {[%clk 0:02:05]} 17. Qxf4 {[%clk 0:01:31]}  Nc4 {[%clk 0:01:54]} 18. Re2 {[%clk 0:01:27]}  Ne5 {[%clk 0:01:39]} 19. Ng3 {[%clk 0:01:18]}  Ng6 {[%clk 0:01:22]} 20. Qb4 {[%clk 0:01:08]}  Rfe8 {[%clk 0:01:20]} 21. h3 {[%clk 0:01:02]}  Rxe2 {[%clk 0:01:19]} 22. Nxe2 {[%clk 0:01:03]}  Re8 {[%clk 0:01:19]} 23. Nd4 {[%clk 0:01:02]}  Qd5 {[%clk 0:01:15]} 24. Qb3 {[%clk 0:01:00]}  Qxb3 {[%clk 0:01:13]} 25. axb3 {[%clk 0:01:01]}  a6 {[%clk 0:01:12]} 26. b4 {[%clk 0:01:00]}  c6 {[%clk 0:01:02]} 27. Kf1 {[%clk 0:00:59]}  Nf4 {[%clk 0:01:02]} 28. Rd1 {[%clk 0:00:55]}  Rd8 {[%clk 0:00:57]} 29. Rd2 {[%clk 0:00:47]}  Kf7 {[%clk 0:00:47]} 30. h4 {[%clk 0:00:46]}  Ng6 {[%clk 0:00:40]} 31. g3 {[%clk 0:00:45]}  Ne5 {[%clk 0:00:39]} 32. Nb3 {[%clk 0:00:42]}  Rxd2 {[%clk 0:00:37]} 33. Nxd2 {[%clk 0:00:43]}  Nd3 {[%clk 0:00:36]} 34. b3 {[%clk 0:00:43]}  Nc1 {[%clk 0:00:32]} 35. Ne4 {[%clk 0:00:36]}  Nxb3 {[%clk 0:00:29]} 36. Nd6+ {[%clk 0:00:36]}  Ke6 {[%clk 0:00:29]} 37. Nxb7 {[%clk 0:00:37]}  Kd5 {[%clk 0:00:26]} 38. Ke2 {[%clk 0:00:30]}  Kc4 {[%clk 0:00:25]} 39. Nd6+ {[%clk 0:00:29]}  Kxc3 {[%clk 0:00:24]} 40. Ne8 {[%clk 0:00:30]}  Kxb4 {[%clk 0:00:23]} 41. Nxg7 {[%clk 0:00:30]}  a5 {[%clk 0:00:21]} 42. Kd3 {[%clk 0:00:29]}  a4 {[%clk 0:00:21]} 43. Kc2 {[%clk 0:00:26]}  a3 {[%clk 0:00:21]} 44. Nf5 {[%clk 0:00:26]}  a2 {[%clk 0:00:19]} 0-1


[Site "https://www.chess.com"]

[Event "Titled Tuesday Blitz February 15 Late 2022"]
[White "Ponkratov, Pavel"]
[Black "Levine, Joseph"]
[WhiteFideId "4157800"]
[BlackFideId "30940346"]
[WhiteElo "2487"]
[BlackElo "1802"]
[Result "1/2-1/2"]
[Round "01"]
[TimeControl "180+1"]
[Date "2022.02.15"]
[WhiteClock "0:01:43"]
[BlackClock "0:00:42"]

1. c4 {[%clk 0:02:57]}  e6 {[%clk 0:03:00]} 2. Nc3 {[%clk 0:02:57]}  d5 {[%clk 0:03:00]} 3. e3 {[%clk 0:02:57]}  Nf6 {[%clk 0:03:01]} 4. Nf3 {[%clk 0:02:58]}  c5 {[%clk 0:03:00]} 5. d4 {[%clk 0:02:57]}  Nc6 {[%clk 0:03:00]} 6. cxd5 {[%clk 0:02:57]}  exd5 {[%clk 0:02:59]} 7. Bb5 {[%clk 0:02:57]}  Bd7 {[%clk 0:02:57]} 8. O-O {[%clk 0:02:55]}  a6 {[%clk 0:02:56]} 9. Be2 {[%clk 0:02:51]}  Rc8 {[%clk 0:02:54]} 10. b3 {[%clk 0:02:51]}  Bg4 {[%clk 0:02:51]} 11. Bb2 {[%clk 0:02:50]}  cxd4 {[%clk 0:02:35]} 12. Nxd4 {[%clk 0:02:44]}  Bxe2 {[%clk 0:02:35]} 13. Ncxe2 {[%clk 0:02:44]}  Qd7 {[%clk 0:02:32]} 14. Nxc6 {[%clk 0:02:43]}  Rxc6 {[%clk 0:02:19]} 15. Bxf6 {[%clk 0:02:42]}  Rxf6 {[%clk 0:02:18]} 16. Nf4 {[%clk 0:02:42]}  d4 {[%clk 0:02:14]} 17. Re1 {[%clk 0:02:42]}  Be7 {[%clk 0:02:07]} 18. Nh5 {[%clk 0:02:38]}  Rg6 {[%clk 0:02:03]} 19. Qxd4 {[%clk 0:02:35]}  Qxd4 {[%clk 0:01:50]} 20. exd4 {[%clk 0:02:34]}  Kd7 {[%clk 0:01:51]} 21. Rac1 {[%clk 0:02:32]}  Bd6 {[%clk 0:01:41]} 22. Ng3 {[%clk 0:02:31]}  Bxg3 {[%clk 0:01:39]} 23. hxg3 {[%clk 0:02:30]}  Rd6 {[%clk 0:01:40]} 24. Re4 {[%clk 0:02:25]}  Re8 {[%clk 0:01:17]} 25. Rxe8 {[%clk 0:02:22]}  Kxe8 {[%clk 0:01:18]} 26. Rc7 {[%clk 0:02:21]}  Rxd4 {[%clk 0:01:19]} 27. Rxb7 {[%clk 0:02:19]}  Rd1+ {[%clk 0:01:18]} 28. Kh2 {[%clk 0:02:20]}  Rd2 {[%clk 0:01:19]} 29. a4 {[%clk 0:02:19]}  Rxf2 {[%clk 0:01:19]} 30. b4 {[%clk 0:02:19]}  Rb2 {[%clk 0:01:16]} 31. a5 {[%clk 0:02:18]}  g6 {[%clk 0:01:13]} 32. g4 {[%clk 0:02:17]}  Kf8 {[%clk 0:01:09]} 33. g5 {[%clk 0:02:17]}  Kg7 {[%clk 0:01:08]} 34. Kg3 {[%clk 0:02:17]}  h6 {[%clk 0:01:08]} 35. gxh6+ {[%clk 0:02:15]}  Kxh6 {[%clk 0:01:09]} 36. Kf3 {[%clk 0:02:16]}  Kg5 {[%clk 0:01:03]} 37. g3 {[%clk 0:02:03]}  f5 {[%clk 0:01:03]} 38. Rb6 {[%clk 0:02:03]}  Rb3+ {[%clk 0:01:01]} 39. Kf2 {[%clk 0:02:04]}  f4 {[%clk 0:00:57]} 40. gxf4+ {[%clk 0:02:02]}  Kxf4 {[%clk 0:00:58]} 41. Rxa6 {[%clk 0:01:50]}  Rxb4 {[%clk 0:00:51]} 42. Rxg6 {[%clk 0:01:49]}  Rb2+ {[%clk 0:00:49]} 43. Ke1 {[%clk 0:01:49]}  Ra2 {[%clk 0:00:50]} 44. Ra6 {[%clk 0:01:44]}  Ke5 {[%clk 0:00:49]} 45. Kd1 {[%clk 0:01:42]}  Kd5 {[%clk 0:00:49]} 46. Kc1 {[%clk 0:01:42]}  Kc5 {[%clk 0:00:50]} 47. Ra8 {[%clk 0:01:43]}  Kb5 {[%clk 0:00:44]} 48. Rb8+ {[%clk 0:01:41]}  Ka6 {[%clk 0:00:44]} 49. Ra8+ {[%clk 0:01:42]}  Kb7 {[%clk 0:00:43]} 50. Rf8 {[%clk 0:01:41]}  Rxa5 {[%clk 0:00:42]} 51. Rf2 {[%clk 0:01:41]}  Rc5+ {[%clk 0:00:42]} 52. Rc2 {[%clk 0:01:42]}  Rxc2+ {[%clk 0:00:42]} 53. Kxc2 {[%clk 0:01:43]} 1/2-1/2


[Site "https://www.chess.com"]

[Event "Titled Tuesday Blitz February 15 Late 2022"]
[White "Poormosavi, Seyed Kian"]
[Black "Dias, Joao Batista"]
[WhiteFideId "12585807"]
[BlackFideId "2108240"]
[WhiteElo "2116"]
[BlackElo "1898"]
[Result "1-0"]
[Round "01"]
[TimeControl "180+1"]
[Date "2022.02.16"]
[WhiteClock "0:01:58"]
[BlackClock "0:01:37"]

1. e4 {[%clk 0:02:59]}  e6 {[%clk 0:02:59]} 2. d4 {[%clk 0:02:58]}  d5 {[%clk 0:02:59]} 3. Nd2 {[%clk 0:02:59]}  dxe4 {[%clk 0:02:58]} 4. Nxe4 {[%clk 0:03:00]}  Nd7 {[%clk 0:02:58]} 5. Nf3 {[%clk 0:02:59]}  Be7 {[%clk 0:02:59]} 6. Ng3 {[%clk 0:02:56]}  Ngf6 {[%clk 0:03:00]} 7. Bd3 {[%clk 0:02:57]}  O-O {[%clk 0:02:59]} 8. O-O {[%clk 0:02:57]}  Re8 {[%clk 0:03:00]} 9. b3 {[%clk 0:02:58]}  Nf8 {[%clk 0:02:59]} 10. Bb2 {[%clk 0:02:58]}  Ng6 {[%clk 0:02:59]} 11. c4 {[%clk 0:02:58]}  b6 {[%clk 0:02:59]} 12. Ne5 {[%clk 0:02:44]}  Bb7 {[%clk 0:02:59]} 13. Nxg6 {[%clk 0:02:44]}  hxg6 {[%clk 0:02:58]} 14. Qe2 {[%clk 0:02:44]}  Bf8 {[%clk 0:02:53]} 15. Rad1 {[%clk 0:02:43]}  Qe7 {[%clk 0:02:52]} 16. Rfe1 {[%clk 0:02:39]}  a5 {[%clk 0:02:49]} 17. a3 {[%clk 0:02:38]}  Rad8 {[%clk 0:02:43]} 18. Bb1 {[%clk 0:02:37]}  Qd7 {[%clk 0:02:37]} 19. h4 {[%clk 0:02:34]}  Qc6 {[%clk 0:02:36]} 20. f3 {[%clk 0:02:31]}  Qd6 {[%clk 0:02:32]} 21. Ne4 {[%clk 0:02:30]}  Bxe4 {[%clk 0:02:29]} 22. fxe4 {[%clk 0:02:29]}  Nh5 {[%clk 0:02:26]} 23. e5 {[%clk 0:02:23]}  Qe7 {[%clk 0:02:26]} 24. g4 {[%clk 0:02:22]}  Qxh4 {[%clk 0:02:14]} 25. gxh5 {[%clk 0:02:22]}  gxh5 {[%clk 0:02:11]} 26. Qg2 {[%clk 0:02:17]}  g6 {[%clk 0:01:54]} 27. Re3 {[%clk 0:02:17]}  Bh6 {[%clk 0:01:52]} 28. Rh3 {[%clk 0:02:15]}  Qg5 {[%clk 0:01:49]} 29. Qxg5 {[%clk 0:02:11]}  Bxg5 {[%clk 0:01:49]} 30. Rdd3 {[%clk 0:02:11]}  Kg7 {[%clk 0:01:47]} 31. Rdg3 {[%clk 0:02:09]}  Kh6 {[%clk 0:01:44]} 32. Kg2 {[%clk 0:02:01]}  c5 {[%clk 0:01:42]} 33. Rxg5 {[%clk 0:01:56]}  Kxg5 {[%clk 0:01:39]} 34. Bc1+ {[%clk 0:01:57]}  Kg4 {[%clk 0:01:39]} 35. Rg3+ {[%clk 0:01:57]}  Kh4 {[%clk 0:01:37]} 36. Bg5# {[%clk 0:01:58]} 1-0


[Site "https://www.chess.com"]

[Event "Titled Tuesday Blitz February 15 Late 2022"]
[White "Qashashvili, Alexandre"]
[Black "Nazaretyan, Tigran"]
[WhiteFideId "13600842"]
[BlackFideId "24162345"]
[WhiteElo "2316"]
[BlackElo "2192"]
[Result "1/2-1/2"]
[Round "01"]
[TimeControl "180+1"]
[Date "2022.02.16"]
[WhiteClock "0:01:56"]
[BlackClock "0:01:11"]

1. e4 {[%clk 0:02:34]}  c5 {[%clk 0:02:59]} 2. Nc3 {[%clk 0:02:33]}  Nc6 {[%clk 0:02:58]} 3. Nf3 {[%clk 0:02:34]}  d6 {[%clk 0:02:57]} 4. d3 {[%clk 0:02:35]}  g6 {[%clk 0:02:55]} 5. Be3 {[%clk 0:02:35]}  Bg7 {[%clk 0:02:54]} 6. Qd2 {[%clk 0:02:35]}  Nd4 {[%clk 0:02:53]} 7. Be2 {[%clk 0:02:36]}  e5 {[%clk 0:02:49]} 8. Bd1 {[%clk 0:02:35]}  Ne7 {[%clk 0:02:41]} 9. Bh6 {[%clk 0:02:34]}  O-O {[%clk 0:02:40]} 10. h4 {[%clk 0:02:33]}  f5 {[%clk 0:02:37]} 11. h5 {[%clk 0:02:31]}  f4 {[%clk 0:02:37]} 12. Bxg7 {[%clk 0:02:32]}  Kxg7 {[%clk 0:02:37]} 13. hxg6 {[%clk 0:02:32]}  hxg6 {[%clk 0:02:36]} 14. g3 {[%clk 0:02:23]}  Rh8 {[%clk 0:02:27]} 15. Rg1 {[%clk 0:02:17]}  fxg3 {[%clk 0:02:01]} 16. fxg3 {[%clk 0:02:06]}  Nec6 {[%clk 0:01:52]} 17. Nd5 {[%clk 0:02:05]}  Be6 {[%clk 0:01:44]} 18. c3 {[%clk 0:02:03]}  Nxf3+ {[%clk 0:01:28]} 19. Bxf3 {[%clk 0:02:04]}  Qf8 {[%clk 0:01:20]} 20. Rf1 {[%clk 0:01:57]}  Bxd5 {[%clk 0:01:11]} 21. exd5 {[%clk 0:01:57]}  Ne7 {[%clk 0:01:11]} 22. O-O-O {[%clk 0:01:56]} 1/2-1/2


[Site "https://www.chess.com"]

[Event "Titled Tuesday Blitz February 15 Late 2022"]
[White "Quirke, Jeffrey"]
[Black "Yang, Kaiqi"]
[WhiteFideId "2013029"]
[BlackFideId "8604398"]
[WhiteElo "2176"]
[BlackElo "2373"]
[Result "1-0"]
[Round "01"]
[TimeControl "180+1"]
[Date "2022.02.16"]
[WhiteClock "0:00:13"]
[BlackClock "0:00:02"]

1. c4 {[%clk 0:03:00]}  Nf6 {[%clk 0:02:58]} 2. g3 {[%clk 0:02:59]}  g6 {[%clk 0:02:58]} 3. Bg2 {[%clk 0:02:58]}  Bg7 {[%clk 0:02:59]} 4. Nc3 {[%clk 0:02:58]}  O-O {[%clk 0:03:00]} 5. Nf3 {[%clk 0:02:57]}  d6 {[%clk 0:03:00]} 6. d3 {[%clk 0:02:54]}  e5 {[%clk 0:02:59]} 7. O-O {[%clk 0:02:53]}  Nc6 {[%clk 0:03:00]} 8. b3 {[%clk 0:02:52]}  e4 {[%clk 0:02:51]} 9. dxe4 {[%clk 0:02:48]}  Nxe4 {[%clk 0:02:28]} 10. Nxe4 {[%clk 0:02:48]}  Bxa1 {[%clk 0:02:28]} 11. Bg5 {[%clk 0:02:48]}  f6 {[%clk 0:02:28]} 12. Bh6 {[%clk 0:01:55]}  Re8 {[%clk 0:02:18]} 13. Qxa1 {[%clk 0:01:55]}  Rxe4 {[%clk 0:02:17]} 14. Ng5 {[%clk 0:01:53]}  Re5 {[%clk 0:01:56]} 15. f4 {[%clk 0:01:46]}  Rf5 {[%clk 0:01:31]} 16. Bd5+ {[%clk 0:01:40]}  Rxd5 {[%clk 0:01:31]} 17. cxd5 {[%clk 0:01:36]}  Nb4 {[%clk 0:01:24]} 18. Qd4 {[%clk 0:01:22]}  a5 {[%clk 0:01:21]} 19. Ne4 {[%clk 0:01:09]}  Kf7 {[%clk 0:01:20]} 20. Bg5 {[%clk 0:00:52]}  fxg5 {[%clk 0:00:52]} 21. fxg5+ {[%clk 0:00:52]}  Bf5 {[%clk 0:00:53]} 22. g4 {[%clk 0:00:51]}  c5 {[%clk 0:00:10]} 23. Qb2 {[%clk 0:00:40]}  Qe7 {[%clk 0:00:09]} 24. gxf5 {[%clk 0:00:40]}  Qxe4 {[%clk 0:00:08]} 25. fxg6+ {[%clk 0:00:40]}  Kxg6 {[%clk 0:00:04]} 26. Qf6+ {[%clk 0:00:29]}  Kh5 {[%clk 0:00:04]} 27. Qh6+ {[%clk 0:00:17]}  Kg4 {[%clk 0:00:04]} 28. h3+ {[%clk 0:00:17]}  Kg3 {[%clk 0:00:03]} 29. Rf3+ {[%clk 0:00:18]}  Qxf3 {[%clk 0:00:03]} 30. exf3 {[%clk 0:00:18]}  Re8 {[%clk 0:00:04]} 31. Kf1 {[%clk 0:00:16]}  Nd3 {[%clk 0:00:04]} 32. Qe6 {[%clk 0:00:14]}  Rxe6 {[%clk 0:00:03]} 33. dxe6 {[%clk 0:00:14]}  Nf4 {[%clk 0:00:02]} 34. e7 {[%clk 0:00:13]} 1-0


[Site "https://www.chess.com"]

[Event "Titled Tuesday Blitz February 15 Late 2022"]
[White "Ramirez, Alejandro"]
[Black "Romero Ruscalleda, Josep"]
[WhiteFideId "6500617"]
[BlackFideId "2231859"]
[WhiteElo "2694"]
[BlackElo "2407"]
[Result "1-0"]
[Round "01"]
[TimeControl "180+1"]
[Date "2022.02.16"]
[WhiteClock "0:01:19"]
[BlackClock "0:01:26"]

1. Nf3 {[%clk 0:02:54]}  g6 {[%clk 0:03:00]} 2. d4 {[%clk 0:02:54]}  Bg7 {[%clk 0:03:01]} 3. g3 {[%clk 0:02:55]}  d6 {[%clk 0:03:01]} 4. Bg2 {[%clk 0:02:56]}  Nf6 {[%clk 0:03:00]} 5. O-O {[%clk 0:02:56]}  O-O {[%clk 0:03:00]} 6. Nc3 {[%clk 0:02:56]}  Nbd7 {[%clk 0:02:59]} 7. e4 {[%clk 0:02:56]}  e5 {[%clk 0:02:52]} 8. a4 {[%clk 0:02:56]}  a6 {[%clk 0:02:48]} 9. a5 {[%clk 0:02:55]}  Qe7 {[%clk 0:02:47]} 10. Re1 {[%clk 0:02:54]}  Re8 {[%clk 0:02:44]} 11. h3 {[%clk 0:02:52]}  h6 {[%clk 0:02:43]} 12. b3 {[%clk 0:02:39]}  Kh7 {[%clk 0:02:41]} 13. Bb2 {[%clk 0:02:36]}  exd4 {[%clk 0:02:36]} 14. Nxd4 {[%clk 0:02:36]}  Ne5 {[%clk 0:02:34]} 15. f4 {[%clk 0:02:26]}  Nc6 {[%clk 0:02:34]} 16. Nxc6 {[%clk 0:02:26]}  bxc6 {[%clk 0:02:34]} 17. e5 {[%clk 0:02:27]}  dxe5 {[%clk 0:02:33]} 18. Rxe5 {[%clk 0:02:22]}  Qd7 {[%clk 0:02:26]} 19. Qxd7 {[%clk 0:02:16]}  Bxd7 {[%clk 0:02:26]} 20. Rd1 {[%clk 0:02:16]}  Nd5 {[%clk 0:02:12]} 21. Rxe8 {[%clk 0:02:00]}  Rxe8 {[%clk 0:02:07]} 22. Nxd5 {[%clk 0:01:59]}  cxd5 {[%clk 0:01:55]} 23. Bxg7 {[%clk 0:01:54]}  Kxg7 {[%clk 0:01:54]} 24. Rxd5 {[%clk 0:01:52]}  Bc6 {[%clk 0:01:47]} 25. Re5 {[%clk 0:01:30]}  Rxe5 {[%clk 0:01:30]} 26. fxe5 {[%clk 0:01:31]}  Bxg2 {[%clk 0:01:24]} 27. Kxg2 {[%clk 0:01:31]}  Kf8 {[%clk 0:01:25]} 28. b4 {[%clk 0:01:21]}  Ke7 {[%clk 0:01:26]} 29. b5 {[%clk 0:01:19]} 1-0


[Site "https://www.chess.com"]

[Event "Titled Tuesday Blitz February 15 Late 2022"]
[White "Rangel, Daniel"]
[Black "Weetik, Vjacheslav"]
[WhiteFideId "2124475"]
[BlackFideId "4153472"]
[WhiteElo "2187"]
[BlackElo "2469"]
[Result "0-1"]
[Round "01"]
[TimeControl "180+1"]
[Date "2022.02.16"]
[WhiteClock "0:00:02"]
[BlackClock "0:00:02"]

1. c4 {[%clk 0:03:00]}  e5 {[%clk 0:02:55]} 2. g3 {[%clk 0:03:01]}  Nc6 {[%clk 0:02:53]} 3. Bg2 {[%clk 0:03:02]}  g6 {[%clk 0:02:51]} 4. Nc3 {[%clk 0:03:02]}  Bg7 {[%clk 0:02:52]} 5. e3 {[%clk 0:03:03]}  f5 {[%clk 0:02:51]} 6. Nd5 {[%clk 0:03:02]}  Nce7 {[%clk 0:02:46]} 7. Ne2 {[%clk 0:03:00]}  c6 {[%clk 0:02:44]} 8. Nxe7 {[%clk 0:03:00]}  Qxe7 {[%clk 0:02:45]} 9. d4 {[%clk 0:02:59]}  e4 {[%clk 0:02:44]} 10. O-O {[%clk 0:02:58]}  Nf6 {[%clk 0:02:44]} 11. Nc3 {[%clk 0:02:52]}  d5 {[%clk 0:02:42]} 12. cxd5 {[%clk 0:02:48]}  cxd5 {[%clk 0:02:42]} 13. b3 {[%clk 0:02:42]}  Bd7 {[%clk 0:02:28]} 14. a4 {[%clk 0:02:38]}  Qe6 {[%clk 0:02:13]} 15. Ba3 {[%clk 0:02:34]}  Kf7 {[%clk 0:02:09]} 16. Qe2 {[%clk 0:02:27]}  Rhc8 {[%clk 0:02:00]} 17. Nb5 {[%clk 0:02:26]}  Bf8 {[%clk 0:01:55]} 18. Qb2 {[%clk 0:02:14]}  a6 {[%clk 0:01:15]} 19. Bxf8 {[%clk 0:02:11]}  Kxf8 {[%clk 0:01:15]} 20. Nc3 {[%clk 0:02:00]}  Rc7 {[%clk 0:01:09]} 21. Ne2 {[%clk 0:01:48]}  Qd6 {[%clk 0:01:06]} 22. Rfc1 {[%clk 0:01:37]}  Rac8 {[%clk 0:01:06]} 23. Rxc7 {[%clk 0:01:35]}  Rxc7 {[%clk 0:01:06]} 24. Rc1 {[%clk 0:01:34]}  Ke7 {[%clk 0:00:56]} 25. h4 {[%clk 0:01:26]}  h6 {[%clk 0:00:44]} 26. Nf4 {[%clk 0:01:21]}  Be8 {[%clk 0:00:40]} 27. Bh3 {[%clk 0:01:10]}  Bf7 {[%clk 0:00:34]} 28. Bf1 {[%clk 0:00:52]}  Ne8 {[%clk 0:00:24]} 29. b4 {[%clk 0:00:39]}  g5 {[%clk 0:00:21]} 30. hxg5 {[%clk 0:00:39]}  hxg5 {[%clk 0:00:22]} 31. Nh3 {[%clk 0:00:39]}  Kf6 {[%clk 0:00:22]} 32. b5 {[%clk 0:00:37]}  a5 {[%clk 0:00:20]} 33. Rc5 {[%clk 0:00:34]}  b6 {[%clk 0:00:19]} 34. Rc3 {[%clk 0:00:24]}  Rxc3 {[%clk 0:00:15]} 35. Qxc3 {[%clk 0:00:23]}  Qc7 {[%clk 0:00:15]} 36. Qa3 {[%clk 0:00:14]}  Nd6 {[%clk 0:00:12]} 37. Be2 {[%clk 0:00:12]}  Bg6 {[%clk 0:00:09]} 38. g4 {[%clk 0:00:10]}  Bh7 {[%clk 0:00:06]} 39. Kg2 {[%clk 0:00:09]}  Bg6 {[%clk 0:00:06]} 40. gxf5 {[%clk 0:00:09]}  Bxf5 {[%clk 0:00:06]} 41. Ng1 {[%clk 0:00:09]}  Ke6 {[%clk 0:00:03]} 42. Qb2 {[%clk 0:00:06]}  Qh7 {[%clk 0:00:04]} 43. Qc1 {[%clk 0:00:05]}  Qd7 {[%clk 0:00:04]} 44. f3 {[%clk 0:00:03]}  Qc8 {[%clk 0:00:03]} 45. Qd2 {[%clk 0:00:02]}  Nc4 {[%clk 0:00:02]} 46. Qe1 {[%clk 0:00:02]}  Nxe3+ {[%clk 0:00:02]} 0-1


[Site "https://www.chess.com"]

[Event "Titled Tuesday Blitz February 15 Late 2022"]
[White "Riehle, Marco"]
[Black "Chabris, Christopher"]
[WhiteFideId "12904392"]
[BlackFideId "2005263"]
[WhiteElo "2462"]
[BlackElo "2301"]
[Result "1-0"]
[Round "01"]
[TimeControl "180+1"]
[Date "2022.02.16"]
[WhiteClock "0:01:20"]
[BlackClock "0:00:02"]

1. e4 {[%clk 0:02:58]}  c5 {[%clk 0:02:59]} 2. a3 {[%clk 0:02:58]}  g6 {[%clk 0:02:58]} 3. h4 {[%clk 0:02:58]}  Bg7 {[%clk 0:02:57]} 4. h5 {[%clk 0:02:57]}  d5 {[%clk 0:02:47]} 5. exd5 {[%clk 0:02:55]}  Qxd5 {[%clk 0:02:47]} 6. Nc3 {[%clk 0:02:54]}  Qe5+ {[%clk 0:02:35]} 7. Be2 {[%clk 0:02:54]}  Nc6 {[%clk 0:02:33]} 8. Nf3 {[%clk 0:02:54]}  Qc7 {[%clk 0:02:20]} 9. d3 {[%clk 0:02:52]}  Bg4 {[%clk 0:02:13]} 10. Be3 {[%clk 0:02:51]}  b6 {[%clk 0:01:54]} 11. Qd2 {[%clk 0:02:33]}  gxh5 {[%clk 0:01:25]} 12. O-O-O {[%clk 0:02:30]}  O-O-O {[%clk 0:01:16]} 13. Ng5 {[%clk 0:02:24]}  e6 {[%clk 0:01:08]} 14. f3 {[%clk 0:02:17]}  Bf5 {[%clk 0:01:07]} 15. Rxh5 {[%clk 0:02:16]}  Bg6 {[%clk 0:01:07]} 16. Rhh1 {[%clk 0:02:16]}  h6 {[%clk 0:01:06]} 17. Nge4 {[%clk 0:02:15]}  Nd4 {[%clk 0:01:04]} 18. Kb1 {[%clk 0:02:11]}  Ne7 {[%clk 0:01:03]} 19. Bf4 {[%clk 0:02:05]}  e5 {[%clk 0:01:01]} 20. Bh2 {[%clk 0:02:05]}  f5 {[%clk 0:00:58]} 21. Nf2 {[%clk 0:02:04]}  a6 {[%clk 0:00:54]} 22. Rhe1 {[%clk 0:02:02]}  h5 {[%clk 0:00:51]} 23. f4 {[%clk 0:01:51]}  Bh6 {[%clk 0:00:50]} 24. Nh3 {[%clk 0:01:47]}  e4 {[%clk 0:00:47]} 25. dxe4 {[%clk 0:01:46]}  Nf3 {[%clk 0:00:41]} 26. Qe3 {[%clk 0:01:41]}  Nxh2 {[%clk 0:00:38]} 27. Bxa6+ {[%clk 0:01:39]}  Kb8 {[%clk 0:00:38]} 28. Nb5 {[%clk 0:01:33]}  Qc6 {[%clk 0:00:26]} 29. exf5 {[%clk 0:01:32]}  Nxf5 {[%clk 0:00:25]} 30. Qe5+ {[%clk 0:01:32]}  Ka8 {[%clk 0:00:22]} 31. Rd6 {[%clk 0:01:23]}  Rxd6 {[%clk 0:00:18]} 32. Qxh8+ {[%clk 0:01:21]}  Be8 {[%clk 0:00:02]} 33. Qxe8+ {[%clk 0:01:20]} 1-0


[Site "https://www.chess.com"]